Workbook

Sheet I - CC 87+00 to 88+40 (L)
A1: Ditch Analysis Input Worksheet
A2: PID: | B2: 114496
A3: Date | B3: =TODAY() -> 2024-06-27
A4: Project | B4: Columbia Connector
A5: Location | B5: Sta. 87+00 to 88+40 Left
A6: Designer | B6: ZTM
A7: Checker | B7: SNS
A8: Rainfall Area | B8: C
A9: Depth Design Year | B9: 10
A10: Shear Stress Design Year | B10: 5
A11: Time to first section | B11: 10 | X11: MACRO COLUMN (ctrl q)
A12: Pick up Flow:
A14: Paved Gutter? (Y/N) | B14: n
A17: Ref. No. | B17: Begin | C17: End | D17: Side | E17: Length | F17: Shape | G17: Begin | H17: End | I17: Grade | J17: Radius/Width | K17: Inslope (ft./ft.) | L17: Backslope (ft./ft.) | M17: Area (acres) | N17: Coefficient | O17: CA (sum) | P17: Ditch Time | Q17: Ditch Time | R17: Total (1) | S17: Total (2) | T17: Intensity (1) | U17: Intensity (2) | V17: Q (1) | W17: Q (2) | X17: Flow Depth (1) | Y17: Flow Depth (2) | Z17: Hydraulic Radius (1) | AA17: Hydraulic Radius (2) | AB17: Qi (1) | AC17: Qi (2) | AD17: Qi/Q (1) | AE17: Qi/Q (2)
A18: 1 | B18: 8700 | C18: 8750 | D18: L | E18: =C18-B18 -> 50 | F18: Trapazoidal | G18: 494.61 | H18: 494.32 | I18: =ROUND((G18-H18)/E18,4) -> 0.0058 | J18: 6 | K18: 3 | L18: 4 | M18: 0.037 | N18: 0.45 | O18: =N18*M18 -> 0.01665 | P18: 0 | Q18: 0 | R18: =B11 -> 10 | S18: =B11 -> 10 | T18: =IF($B$8="A",(VLOOKUP($B$10,'[1]Rainfall Intensity'!$B$2:$E$7,2,FALSE))/($R$18+VLOOKUP($B$10,'[1]Rainfall Intensity'!$B$2:$E$7,3,FALSE))^VLOOKUP($B$10,'[1]Rainfall Intensity'!$B$2:$E$7,4,FALSE),IF($B$8="B",(VLOOKUP($B$10,'[1]Rainfall Intensity'!$B$8:$E$13,2,FALSE))/($R$18+VLOOKUP($B$10,'[1]Rainfall Intensity'!$B$8:$E$13,3,FALSE))^VLOOKUP($B$10,'[1]Rainfall Intensity'!$B$8:$E$13,4,FALSE),IF($B$8="C",(VLOOKUP($B$10,'[1]Rainfall Intensity'!$B$14:$E$19,2,FALSE))/($R$18+VLOOKUP($B$10,'[1]Rainfall Intensity'!$B$14:$E$19,3,FALSE))^VLOOKUP($B$10,'[1]Rainfall Intensity'!$B$14:$E$19,4,FALSE),IF($B$8="D",(VLOOKUP($B$10,'[1]Rainfall Intensity'!$B$20:$E$25,2,FALSE))/($R$18+VLOOKUP($B$10,'[1]Rainfall Intensity'!$B$20:$E$25,3,FALSE))^VLOOKUP($B$10,'[1]Rainfall Intensity'!$B$20:$E$25,4,FALSE),FALSE)))) -> 4.820279563 | U18: =IF($B$8="A",(VLOOKUP($B$9,'[1]Rainfall Intensity'!$B$2:$E$7,2,FALSE))/(S18+VLOOKUP($B$9,'[1]Rainfall Intensity'!$B$2:$E$7,3,FALSE))^VLOOKUP($B$9,'[1]Rainfall Intensity'!$B$2:$E$7,4,FALSE),IF($B$8="B",(VLOOKUP($B$9,'[1]Rainfall Intensity'!$B$8:$E$13,2,FALSE))/(S18+VLOOKUP($B$9,'[1]Rainfall Intensity'!$B$8:$E$13,3,FALSE))^VLOOKUP($B$9,'[1]Rainfall Intensity'!$B$8:$E$13,4,FALSE),IF($B$8="C",(VLOOKUP($B$9,'[1]Rainfall Intensity'!$B$14:$E$19,2,FALSE))/(S18+VLOOKUP($B$9,'[1]Rainfall Intensity'!$B$14:$E$19,3,FALSE))^VLOOKUP($B$9,'[1]Rainfall Intensity'!$B$14:$E$19,4,FALSE),IF($B$8="D",(VLOOKUP($B$9,'[1]Rainfall Intensity'!$B$20:$E$25,2,FALSE))/(S18+VLOOKUP($B$9,'[1]Rainfall Intensity'!$B$20:$E$25,3,FALSE))^VLOOKUP($B$9,'[1]Rainfall Intensity'!$B$20:$E$25,4,FALSE),FALSE)))) -> 5.321936159 | V18: =O18*T18+$B$12 -> 0.08025765472 | W18: =O18*U18+$B$12 -> 0.08861023706 | X18: 0.068825 | Y18: 0.072325 | Z18: =(X18*((J18+(J18+K18*X18+L18*X18))/2))/(J18+SQRT(X18^2+(X18*L18)^2)+SQRT(X18^2+(X18*K18)^2)) -> 0.06606699969 | AA18: =(Y18*((J18+(J18+K18*Y18+L18*Y18))/2))/(J18+SQRT(Y18^2+(Y18*L18)^2)+SQRT(Y18^2+(Y18*K18)^2)) -> 0.06929125716 | AB18: =1.486/'R- CC 87+00 to 88+40 (L)'!Q16*Z18*SQRT(I18)*X18*((J18+(J18+X18*K18+X18*L18))/2) -> 0.08028787684 | AC18: =1.486/'R- CC 87+00 to 88+40 (L)'!Q16*AA18*SQRT(I18)*Y18*((J18+(J18+Y18*K18+Y18*L18))/2) -> 0.0886620312 | AD18: =AB18-V18 -> 3.022212243e-05 | AE18: =AC18-W18 -> 5.179413998e-05
A19: 2 | B19: 8750 | C19: 8800 | D19: L | E19: =C19-B19 -> 50 | F19: Trapazoidal | G19: 494.32 | H19: 488.5 | I19: 0.1164 | J19: 11 | K19: 2 | L19: 4 | M19: 0.064 | N19: 0.5 | O19: =O18+M19*N19 -> 0.04865 | P19: =E18/(60*(V18/(X18*((J18+J18+X18*K18+X18*L18)/2)))) -> 4.459897353 | Q19: =E18/(60*(W18/(Y18*((J18+J18+Y18*K18+Y18*L18)/2)))) -> 4.253253581 | R19: =R18+P19 -> 14.45989735 | S19: 14.25325358 | T19: =IF($B$8="A",(VLOOKUP($B$10,'[1]Rainfall Intensity'!$B$2:$E$7,2,FALSE))/($R$19+VLOOKUP($B$10,'[1]Rainfall Intensity'!$B$2:$E$7,3,FALSE))^VLOOKUP($B$10,'[1]Rainfall Intensity'!$B$2:$E$7,4,FALSE),IF($B$8="B",(VLOOKUP($B$10,'[1]Rainfall Intensity'!$B$8:$E$13,2,FALSE))/($R$19+VLOOKUP($B$10,'[1]Rainfall Intensity'!$B$8:$E$13,3,FALSE))^VLOOKUP($B$10,'[1]Rainfall Intensity'!$B$8:$E$13,4,FALSE),IF($B$8="C",(VLOOKUP($B$10,'[1]Rainfall Intensity'!$B$14:$E$19,2,FALSE))/($R$19+VLOOKUP($B$10,'[1]Rainfall Intensity'!$B$14:$E$19,3,FALSE))^VLOOKUP($B$10,'[1]Rainfall Intensity'!$B$14:$E$19,4,FALSE),IF($B$8="D",(VLOOKUP($B$10,'[1]Rainfall Intensity'!$B$20:$E$25,2,FALSE))/($R$19+VLOOKUP($B$10,'[1]Rainfall Intensity'!$B$20:$E$25,3,FALSE))^VLOOKUP($B$10,'[1]Rainfall Intensity'!$B$20:$E$25,4,FALSE),FALSE)))) -> 4.077475559 | U19: =IF($B$8="A",(VLOOKUP($B$9,'[1]Rainfall Intensity'!$B$2:$E$7,2,FALSE))/(S19+VLOOKUP($B$9,'[1]Rainfall Intensity'!$B$2:$E$7,3,FALSE))^VLOOKUP($B$9,'[1]Rainfall Intensity'!$B$2:$E$7,4,FALSE),IF($B$8="B",(VLOOKUP($B$9,'[1]Rainfall Intensity'!$B$8:$E$13,2,FALSE))/(S19+VLOOKUP($B$9,'[1]Rainfall Intensity'!$B$8:$E$13,3,FALSE))^VLOOKUP($B$9,'[1]Rainfall Intensity'!$B$8:$E$13,4,FALSE),IF($B$8="C",(VLOOKUP($B$9,'[1]Rainfall Intensity'!$B$14:$E$19,2,FALSE))/(S19+VLOOKUP($B$9,'[1]Rainfall Intensity'!$B$14:$E$19,3,FALSE))^VLOOKUP($B$9,'[1]Rainfall Intensity'!$B$14:$E$19,4,FALSE),IF($B$8="D",(VLOOKUP($B$9,'[1]Rainfall Intensity'!$B$20:$E$25,2,FALSE))/(S19+VLOOKUP($B$9,'[1]Rainfall Intensity'!$B$20:$E$25,3,FALSE))^VLOOKUP($B$9,'[1]Rainfall Intensity'!$B$20:$E$25,4,FALSE),FALSE)))) -> 4.582206119 | V19: =O19*T19+$B$12 -> 0.198369186 | W19: 0.2229243277 | X19: 0.0377625 | Y19: 0.040025 | Z19: 0.03733633059 | AA19: 0.03954684586 | AB19: =1.486/'R- CC 87+00 to 88+40 (L)'!Q17*Z19*SQRT(I19)*X19*((J19+(J19+X19*K19+X19*L19))/2) -> 0.1985958777 | AC19: =1.486/'R- CC 87+00 to 88+40 (L)'!Q17*AA19*SQRT(I19)*Y19*((J19+(J19+Y19*K19+Y19*L19))/2) -> 0.2230931401 | AD19: =AB19-V19 -> 0.0002266917481 | AE19: 0.0001688124254
A20: 3 | B20: 8800 | C20: 8840 | D20: L | E20: 40 | F20: Trapazoidal | G20: 488.5 | H20: 483.31 | I20: 0.1298 | J20: 11 | K20: 2 | L20: 4 | M20: 0.04 | N20: 0.68 | O20: =O19+M20*N20 -> 0.07585 | P20: 1.762981807 | Q20: 1.663797033 | R20: 16.22287916 | S20: 15.91705061 | T20: =IF($B$8="A",(VLOOKUP($B$10,'[1]Rainfall Intensity'!$B$2:$E$7,2,FALSE))/($R$20+VLOOKUP($B$10,'[1]Rainfall Intensity'!$B$2:$E$7,3,FALSE))^VLOOKUP($B$10,'[1]Rainfall Intensity'!$B$2:$E$7,4,FALSE),IF($B$8="B",(VLOOKUP($B$10,'[1]Rainfall Intensity'!$B$8:$E$13,2,FALSE))/($R$20+VLOOKUP($B$10,'[1]Rainfall Intensity'!$B$8:$E$13,3,FALSE))^VLOOKUP($B$10,'[1]Rainfall Intensity'!$B$8:$E$13,4,FALSE),IF($B$8="C",(VLOOKUP($B$10,'[1]Rainfall Intensity'!$B$14:$E$19,2,FALSE))/($R$20+VLOOKUP($B$10,'[1]Rainfall Intensity'!$B$14:$E$19,3,FALSE))^VLOOKUP($B$10,'[1]Rainfall Intensity'!$B$14:$E$19,4,FALSE),IF($B$8="D",(VLOOKUP($B$10,'[1]Rainfall Intensity'!$B$20:$E$25,2,FALSE))/($R$20+VLOOKUP($B$10,'[1]Rainfall Intensity'!$B$20:$E$25,3,FALSE))^VLOOKUP($B$10,'[1]Rainfall Intensity'!$B$20:$E$25,4,FALSE),FALSE)))) -> 3.847008092 | U20: =IF($B$8="A",(VLOOKUP($B$9,'[1]Rainfall Intensity'!$B$2:$E$7,2,FALSE))/(S20+VLOOKUP($B$9,'[1]Rainfall Intensity'!$B$2:$E$7,3,FALSE))^VLOOKUP($B$9,'[1]Rainfall Intensity'!$B$2:$E$7,4,FALSE),IF($B$8="B",(VLOOKUP($B$9,'[1]Rainfall Intensity'!$B$8:$E$13,2,FALSE))/(S20+VLOOKUP($B$9,'[1]Rainfall Intensity'!$B$8:$E$13,3,FALSE))^VLOOKUP($B$9,'[1]Rainfall Intensity'!$B$8:$E$13,4,FALSE),IF($B$8="C",(VLOOKUP($B$9,'[1]Rainfall Intensity'!$B$14:$E$19,2,FALSE))/(S20+VLOOKUP($B$9,'[1]Rainfall Intensity'!$B$14:$E$19,3,FALSE))^VLOOKUP($B$9,'[1]Rainfall Intensity'!$B$14:$E$19,4,FALSE),IF($B$8="D",(VLOOKUP($B$9,'[1]Rainfall Intensity'!$B$20:$E$25,2,FALSE))/(S20+VLOOKUP($B$9,'[1]Rainfall Intensity'!$B$20:$E$25,3,FALSE))^VLOOKUP($B$9,'[1]Rainfall Intensity'!$B$20:$E$25,4,FALSE),FALSE)))) -> 4.348863618 | V20: 0.2917955638 | W20: 0.3298613054 | X20: 0.044625 | Y20: 0.047425 | Z20: 0.04403216427 | AA20: 0.04675649014 | AB20: =1.486/'R- CC 87+00 to 88+40 (L)'!Q18*Z20*SQRT(I20)*X20*((J20+(J20+X20*K20+X20*L20))/2) -> 0.2928132784 | AC20: =1.486/'R- CC 87+00 to 88+40 (L)'!Q18*AA20*SQRT(I20)*Y20*((J20+(J20+Y20*K20+Y20*L20))/2) -> 0.3306886426 | AD20: 0.001017714612 | AE20: 0.000827337202

Sheet R- CC 87+00 to 88+40 (L)
A1: Ditch Analysis
A2: PID: | D2: ='I - CC 87+00 to 88+40 (L)'!B2 -> 114496 | I2: Ditch Lining | K2: Manning's "n" | L2: Allowable Shear Stress
A3: Date: | D3: ='I - CC 87+00 to 88+40 (L)'!B3 -> 2024-06-27
A4: Project: | D4: ='I - CC 87+00 to 88+40 (L)'!B4 -> Columbia Connector | I4: Seed | K4: 0.04 | L4: 0.4
A5: Location: | D5: ='I - CC 87+00 to 88+40 (L)'!B5 -> Sta. 87+00 to 88+40 Left | I5: Jute Mat | K5: 0.04 | L5: 0.45
A6: Designer: | D6: ='I - CC 87+00 to 88+40 (L)'!B6 -> ZTM | I6: Temporary Mat | K6: 0.04 | L6: 1
A7: Checker: | D7: ='I - CC 87+00 to 88+40 (L)'!B7 -> SNS | I7: Permanent Mat, Type 1 | K7: 0.04 | L7: 2
A8: Rainfall Area: | D8: ='I - CC 87+00 to 88+40 (L)'!B8 -> C | I8: Permanent Mat, Type 2 | K8: 0.04 | L8: 3
A9: Depth Storm Frequency: | D9: ='I - CC 87+00 to 88+40 (L)'!B9 -> 10 | I9: Permanent Mat, Type 3 | K9: 0.04 | L9: 5 | N9: * Grade Steeper than Allowable
A10: Shear Stress Storm Frequency: | D10: ='I - CC 87+00 to 88+40 (L)'!B10 -> 5 | I10: RCP, Type B | K10: 0.06 | L10: 6
A11: Pickup Flow (cfs): | D11: ='I - CC 87+00 to 88+40 (L)'!B12 -> 0
A13: Station | F13: Dimension | J13: Rainfall | N13: Lining Type | O13: Discharge
A14: Ref. No. | B14: Begin | C14: End | D14: Side | E14: Length (ft.) | F14: Radius/Width (ft.) | G14: Inslope (ft./ft.) | H14: Backslope (ft./ft.) | I14: Grade (ft./ft.) | J14: Area (acres) | K14: Total Area (acres) | L14: Runoff Coefficient | M14: CA (sum) | N14: Protection Type | O14: Intensity (in./hr.) | P14: Storm Freq. (Yrs.) | Q14: Mann. Coef. | R14: Time Flow (min.) | S14: Velocity Flow (fps) | T14: Shear (lbs./sq.ft) | U14: Design Flow (cfs.) | V14: Depth Flow (ft.) | W14: Width Flow (ft.)
A15: =IF('I - CC 87+00 to 88+40 (L)'!A18<>"", 'I - CC 87+00 to 88+40 (L)'!A18, "") -> 1 | B15: =IF('I - CC 87+00 to 88+40 (L)'!B18<>"", 'I - CC 87+00 to 88+40 (L)'!B18, "") -> 8700 | C15: =IF('I - CC 87+00 to 88+40 (L)'!C18<>"", 'I - CC 87+00 to 88+40 (L)'!C18, "") -> 8750 | D15: =IF('I - CC 87+00 to 88+40 (L)'!D18<>"", 'I - CC 87+00 to 88+40 (L)'!D18, "") -> L | E15: =IF('I - CC 87+00 to 88+40 (L)'!E18<>"", 'I - CC 87+00 to 88+40 (L)'!E18, "") -> 50 | F15: =IF('I - CC 87+00 to 88+40 (L)'!J18<>"", 'I - CC 87+00 to 88+40 (L)'!J18, "") -> 6 | G15: =IF('I - CC 87+00 to 88+40 (L)'!K18<>"", 'I - CC 87+00 to 88+40 (L)'!K18, "") -> 3 | H15: =IF('I - CC 87+00 to 88+40 (L)'!L18<>"", 'I - CC 87+00 to 88+40 (L)'!L18, "") -> 4 | I15: =IF('I - CC 87+00 to 88+40 (L)'!I18<>"", IF('I - CC 87+00 to 88+40 (L)'!I18>0.2, 'I - CC 87+00 to 88+40 (L)'!I18&"*", 'I - CC 87+00 to 88+40 (L)'!I18), "") -> 0.0058 | J15: =IF('I - CC 87+00 to 88+40 (L)'!M18<>"", 'I - CC 87+00 to 88+40 (L)'!M18, "") -> 0.037 | K15: =IF(J15<>"",J15, "") -> 0.037 | L15: =IF('I - CC 87+00 to 88+40 (L)'!N18<>"", 'I - CC 87+00 to 88+40 (L)'!N18, "") -> 0.45 | M15: =IF(J15<>"", J15*L15, "") -> 0.01665 | N15: =IF(A15<>"", IF('I - CC 87+00 to 88+40 (L)'!$B$14="Y", "Paved Gutter",IF(T15<$L$4, $I$4, IF(T15<$L$5, $I$5, IF(T15<$L$6, $I$6, IF(T15<$L$7, $I$7, IF(T15<$L$8, $I$8, IF(T15<$L$9, $I$9, $I$10))))))), "") -> Seed | O15: =IF('I - CC 87+00 to 88+40 (L)'!A18<>"", IF($D$8="A",(VLOOKUP($P$15,'[1]Rainfall Intensity'!$B$2:$E$7,2,FALSE))/(R15+VLOOKUP($P$15,'[1]Rainfall Intensity'!$B$2:$E$7,3,FALSE))^VLOOKUP($P$15,'[1]Rainfall Intensity'!$B$2:$E$7,4,FALSE),IF($D$8="B",(VLOOKUP($P$15,'[1]Rainfall Intensity'!$B$8:$E$13,2,FALSE))/(R15+VLOOKUP($P$15,'[1]Rainfall Intensity'!$B$8:$E$13,3,FALSE))^VLOOKUP($P$15,'[1]Rainfall Intensity'!$B$8:$E$13,4,FALSE),IF($D$8="C",(VLOOKUP($P$15,'[1]Rainfall Intensity'!$B$14:$E$19,2,FALSE))/(R15+VLOOKUP($P$15,'[1]Rainfall Intensity'!$B$14:$E$19,3,FALSE))^VLOOKUP($P$15,'[1]Rainfall Intensity'!$B$14:$E$19,4,FALSE),IF($D$8="D",(VLOOKUP($P$15,'[1]Rainfall Intensity'!$B$20:$E$25,2,FALSE))/(R15+VLOOKUP($P$15,'[1]Rainfall Intensity'!$B$20:$E$25,3,FALSE))^VLOOKUP($P$15,'[1]Rainfall Intensity'!$B$20:$E$25,4,FALSE),FALSE)))), "") -> 4.820279563 | P15: =IF('I - CC 87+00 to 88+40 (L)'!A18<>"", $D$10, "") -> 5 | Q15: =IF('I - CC 87+00 to 88+40 (L)'!A18<>"", IF('I - CC 87+00 to 88+40 (L)'!$B$14="Y", 0.015,VLOOKUP(N15, $I$4:$K$10, 3, FALSE)), "") -> 0.04 | R15: =IF('I - CC 87+00 to 88+40 (L)'!A18<>"", 'I - CC 87+00 to 88+40 (L)'!R18, "") -> 10 | S15: =IF(A15<>"",U15/(V15*(F15+F15+G15*V15+H15*V15)/2),"") -> 0.1868503392 | T15: =IF(A15<>"", 62.4*V15*'I - CC 87+00 to 88+40 (L)'!I18, "") -> 0.024909144 | U15: =IF('I - CC 87+00 to 88+40 (L)'!A18<>"", 'I - CC 87+00 to 88+40 (L)'!V18, "") -> 0.08025765472 | V15: =IF('I - CC 87+00 to 88+40 (L)'!X18<>"",'I - CC 87+00 to 88+40 (L)'!X18, "") -> 0.068825 | W15: =IF(A15<>"",F15+G15*V15+H15*V15, "") -> 6.481775
O16: =IF('I - CC 87+00 to 88+40 (L)'!A18<>"", IF($D$8="A",(VLOOKUP($P$16,'[1]Rainfall Intensity'!$B$2:$E$7,2,FALSE))/(R16+VLOOKUP($P$16,'[1]Rainfall Intensity'!$B$2:$E$7,3,FALSE))^VLOOKUP($P$16,'[1]Rainfall Intensity'!$B$2:$E$7,4,FALSE),IF($D$8="B",(VLOOKUP($P$16,'[1]Rainfall Intensity'!$B$8:$E$13,2,FALSE))/(R16+VLOOKUP($P$16,'[1]Rainfall Intensity'!$B$8:$E$13,3,FALSE))^VLOOKUP($P$16,'[1]Rainfall Intensity'!$B$8:$E$13,4,FALSE),IF($D$8="C",(VLOOKUP($P$16,'[1]Rainfall Intensity'!$B$14:$E$19,2,FALSE))/(R16+VLOOKUP($P$16,'[1]Rainfall Intensity'!$B$14:$E$19,3,FALSE))^VLOOKUP($P$16,'[1]Rainfall Intensity'!$B$14:$E$19,4,FALSE),IF($D$8="D",(VLOOKUP($P$16,'[1]Rainfall Intensity'!$B$20:$E$25,2,FALSE))/(R16+VLOOKUP($P$16,'[1]Rainfall Intensity'!$B$20:$E$25,3,FALSE))^VLOOKUP($P$16,'[1]Rainfall Intensity'!$B$20:$E$25,4,FALSE),FALSE)))), "") -> 5.321936159 | P16: =IF('I - CC 87+00 to 88+40 (L)'!A18<>"", $D$9, "") -> 10 | Q16: =IF('I - CC 87+00 to 88+40 (L)'!A18<>"", IF('I - CC 87+00 to 88+40 (L)'!$B$14="Y", 0.015,VLOOKUP(N15, $I$4:$K$10, 3, FALSE)), "") -> 0.04 | R16: =IF('I - CC 87+00 to 88+40 (L)'!A18<>"", 'I - CC 87+00 to 88+40 (L)'!S18, "") -> 10 | S16: =IF(A15<>"",U16/(V16*(F15+F15+G15*V16+H15*V16)/2),"") -> 0.1959284387 | T16: =IF(A15<>"", 62.4*V16*'I - CC 87+00 to 88+40 (L)'!I18, "") -> 0.026175864 | U16: =IF('I - CC 87+00 to 88+40 (L)'!A18<>"", 'I - CC 87+00 to 88+40 (L)'!W18, "") -> 0.08861023706 | V16: =IF('I - CC 87+00 to 88+40 (L)'!X18<>"",'I - CC 87+00 to 88+40 (L)'!Y18, "") -> 0.072325 | W16: =IF(A15<>"",F15+G15*V16+H15*V16, "") -> 6.506275
A17: =IF('I - CC 87+00 to 88+40 (L)'!A19<>"", 'I - CC 87+00 to 88+40 (L)'!A19, "") -> 2 | B17: =IF('I - CC 87+00 to 88+40 (L)'!B19<>"", 'I - CC 87+00 to 88+40 (L)'!B19, "") -> 8750 | C17: =IF('I - CC 87+00 to 88+40 (L)'!C19<>"", 'I - CC 87+00 to 88+40 (L)'!C19, "") -> 8800 | D17: =IF('I - CC 87+00 to 88+40 (L)'!E19<>"", 'I - CC 87+00 to 88+40 (L)'!D19, "") -> L | E17: =IF('I - CC 87+00 to 88+40 (L)'!F19<>"", 'I - CC 87+00 to 88+40 (L)'!E19, "") -> 50 | F17: =IF('I - CC 87+00 to 88+40 (L)'!J19<>"", 'I - CC 87+00 to 88+40 (L)'!J19, "") -> 11 | G17: =IF('I - CC 87+00 to 88+40 (L)'!K19<>"", 'I - CC 87+00 to 88+40 (L)'!K19, "") -> 2 | H17: =IF('I - CC 87+00 to 88+40 (L)'!L19<>"", 'I - CC 87+00 to 88+40 (L)'!L19, "") -> 4 | I17: =IF('I - CC 87+00 to 88+40 (L)'!I19<>"", IF('I - CC 87+00 to 88+40 (L)'!I19>0.2, 'I - CC 87+00 to 88+40 (L)'!I19&"*", 'I - CC 87+00 to 88+40 (L)'!I19), "") -> 0.1164 | J17: =IF('I - CC 87+00 to 88+40 (L)'!M19<>"", 'I - CC 87+00 to 88+40 (L)'!M19, "") -> 0.064 | K17: =IF(J17<>"",K15+J17, "") -> 0.101 | L17: =IF('I - CC 87+00 to 88+40 (L)'!N19<>"", 'I - CC 87+00 to 88+40 (L)'!N19, "") -> 0.5 | M17: =IF(J17<>"", M15+J17*L17, "") -> 0.04865 | N17: =IF(A17<>"", IF('I - CC 87+00 to 88+40 (L)'!$B$14="Y", "Paved Gutter",IF(T17<$L$4, $I$4, IF(T17<$L$5, $I$5, IF(T17<$L$6, $I$6, IF(T17<$L$7, $I$7, IF(T17<$L$8, $I$8, IF(T17<$L$9, $I$9, $I$10))))))), "") -> Seed | O17: =IF('I - CC 87+00 to 88+40 (L)'!A19<>"", IF($D$8="A",(VLOOKUP($P$15,'[1]Rainfall Intensity'!$B$2:$E$7,2,FALSE))/(R17+VLOOKUP($P$15,'[1]Rainfall Intensity'!$B$2:$E$7,3,FALSE))^VLOOKUP($P$15,'[1]Rainfall Intensity'!$B$2:$E$7,4,FALSE),IF($D$8="B",(VLOOKUP($P$15,'[1]Rainfall Intensity'!$B$8:$E$13,2,FALSE))/(R17+VLOOKUP($P$15,'[1]Rainfall Intensity'!$B$8:$E$13,3,FALSE))^VLOOKUP($P$15,'[1]Rainfall Intensity'!$B$8:$E$13,4,FALSE),IF($D$8="C",(VLOOKUP($P$15,'[1]Rainfall Intensity'!$B$14:$E$19,2,FALSE))/(R17+VLOOKUP($P$15,'[1]Rainfall Intensity'!$B$14:$E$19,3,FALSE))^VLOOKUP($P$15,'[1]Rainfall Intensity'!$B$14:$E$19,4,FALSE),IF($D$8="D",(VLOOKUP($P$15,'[1]Rainfall Intensity'!$B$20:$E$25,2,FALSE))/(R17+VLOOKUP($P$15,'[1]Rainfall Intensity'!$B$20:$E$25,3,FALSE))^VLOOKUP($P$15,'[1]Rainfall Intensity'!$B$20:$E$25,4,FALSE),FALSE)))), "") -> 4.077475559 | P17: =IF('I - CC 87+00 to 88+40 (L)'!A19<>"", $D$10, "") -> 5 | Q17: =IF('I - CC 87+00 to 88+40 (L)'!A19<>"", IF('I - CC 87+00 to 88+40 (L)'!$B$14="Y", 0.015,VLOOKUP(N17, $I$4:$K$10, 3, FALSE)), "") -> 0.04 | R17: =IF('I - CC 87+00 to 88+40 (L)'!A19<>"", 'I - CC 87+00 to 88+40 (L)'!R19, "") -> 14.45989735 | S17: =IF(A17<>"",U17/(V17*(F17+F17+G17*V17+H17*V17)/2),"") -> 0.4726840231 | T17: =IF(A17<>"", 62.4*V17*'I - CC 87+00 to 88+40 (L)'!I19, "") -> 0.274282632 | U17: =IF('I - CC 87+00 to 88+40 (L)'!A19<>"",'I - CC 87+00 to 88+40 (L)'!V19, "") -> 0.198369186 | V17: =IF('I - CC 87+00 to 88+40 (L)'!X19<>"",'I - CC 87+00 to 88+40 (L)'!X19, "") -> 0.0377625 | W17: =IF(A17<>"",F17+G17*V17+H17*V17, "") -> 11.226575
O18: =IF('I - CC 87+00 to 88+40 (L)'!A19<>"", IF($D$8="A",(VLOOKUP($P$16,'[1]Rainfall Intensity'!$B$2:$E$7,2,FALSE))/(R18+VLOOKUP($P$16,'[1]Rainfall Intensity'!$B$2:$E$7,3,FALSE))^VLOOKUP($P$16,'[1]Rainfall Intensity'!$B$2:$E$7,4,FALSE),IF($D$8="B",(VLOOKUP($P$16,'[1]Rainfall Intensity'!$B$8:$E$13,2,FALSE))/(R18+VLOOKUP($P$16,'[1]Rainfall Intensity'!$B$8:$E$13,3,FALSE))^VLOOKUP($P$16,'[1]Rainfall Intensity'!$B$8:$E$13,4,FALSE),IF($D$8="C",(VLOOKUP($P$16,'[1]Rainfall Intensity'!$B$14:$E$19,2,FALSE))/(R18+VLOOKUP($P$16,'[1]Rainfall Intensity'!$B$14:$E$19,3,FALSE))^VLOOKUP($P$16,'[1]Rainfall Intensity'!$B$14:$E$19,4,FALSE),IF($D$8="D",(VLOOKUP($P$16,'[1]Rainfall Intensity'!$B$20:$E$25,2,FALSE))/(R18+VLOOKUP($P$16,'[1]Rainfall Intensity'!$B$20:$E$25,3,FALSE))^VLOOKUP($P$16,'[1]Rainfall Intensity'!$B$20:$E$25,4,FALSE),FALSE)))), "") -> 4.582206119 | P18: =IF('I - CC 87+00 to 88+40 (L)'!A19<>"", $D$9, "") -> 10 | Q18: =IF('I - CC 87+00 to 88+40 (L)'!A19<>"", IF('I - CC 87+00 to 88+40 (L)'!$B$14="Y", 0.015,VLOOKUP(N17, $I$4:$K$10, 3, FALSE)), "") -> 0.04 | R18: =IF('I - CC 87+00 to 88+40 (L)'!A19<>"", 'I - CC 87+00 to 88+40 (L)'!S19, "") -> 14.25325358 | S18: =IF(A17<>"",U18/(V18*(F17+F17+G17*V18+H17*V18)/2),"") -> 0.500862375 | T18: =IF(A17<>"", 62.4*V18*'I - CC 87+00 to 88+40 (L)'!I19, "") -> 0.290715984 | U18: =IF('I - CC 87+00 to 88+40 (L)'!A19<>"", 'I - CC 87+00 to 88+40 (L)'!W19, "") -> 0.2229243277 | V18: =IF('I - CC 87+00 to 88+40 (L)'!X19<>"",'I - CC 87+00 to 88+40 (L)'!Y19, "") -> 0.040025 | W18: =IF(A17<>"",F17+G17*V18+H17*V18, "") -> 11.24015
A19: =IF('I - CC 87+00 to 88+40 (L)'!A20<>"", 'I - CC 87+00 to 88+40 (L)'!A20, "") -> 3 | B19: =IF('I - CC 87+00 to 88+40 (L)'!B20<>"", 'I - CC 87+00 to 88+40 (L)'!B20, "") -> 8800 | C19: =IF('I - CC 87+00 to 88+40 (L)'!C20<>"", 'I - CC 87+00 to 88+40 (L)'!C20, "") -> 8840 | D19: =IF('I - CC 87+00 to 88+40 (L)'!E20<>"", 'I - CC 87+00 to 88+40 (L)'!D20, "") -> L | E19: =IF('I - CC 87+00 to 88+40 (L)'!F20<>"", 'I - CC 87+00 to 88+40 (L)'!E20, "") -> 40 | F19: =IF('I - CC 87+00 to 88+40 (L)'!J20<>"", 'I - CC 87+00 to 88+40 (L)'!J20, "") -> 11 | G19: =IF('I - CC 87+00 to 88+40 (L)'!K20<>"", 'I - CC 87+00 to 88+40 (L)'!K20, "") -> 2 | H19: =IF('I - CC 87+00 to 88+40 (L)'!L20<>"", 'I - CC 87+00 to 88+40 (L)'!L20, "") -> 4 | I19: =IF('I - CC 87+00 to 88+40 (L)'!I20<>"", IF('I - CC 87+00 to 88+40 (L)'!I20>0.2, 'I - CC 87+00 to 88+40 (L)'!I20&"*", 'I - CC 87+00 to 88+40 (L)'!I20), "") -> 0.1298 | J19: =IF('I - CC 87+00 to 88+40 (L)'!M20<>"", 'I - CC 87+00 to 88+40 (L)'!M20, "") -> 0.04 | K19: =IF(J19<>"",K17+J19, "") -> 0.141 | L19: =IF('I - CC 87+00 to 88+40 (L)'!N20<>"", 'I - CC 87+00 to 88+40 (L)'!N20, "") -> 0.68 | M19: =IF(J19<>"", M17+J19*L19, "") -> 0.07585 | N19: =IF(A19<>"", IF('I - CC 87+00 to 88+40 (L)'!$B$14="Y", "Paved Gutter",IF(T19<$L$4, $I$4, IF(T19<$L$5, $I$5, IF(T19<$L$6, $I$6, IF(T19<$L$7, $I$7, IF(T19<$L$8, $I$8, IF(T19<$L$9, $I$9, $I$10))))))), "") -> Seed | O19: =IF('I - CC 87+00 to 88+40 (L)'!A20<>"", IF($D$8="A",(VLOOKUP($P$15,'[1]Rainfall Intensity'!$B$2:$E$7,2,FALSE))/(R19+VLOOKUP($P$15,'[1]Rainfall Intensity'!$B$2:$E$7,3,FALSE))^VLOOKUP($P$15,'[1]Rainfall Intensity'!$B$2:$E$7,4,FALSE),IF($D$8="B",(VLOOKUP($P$15,'[1]Rainfall Intensity'!$B$8:$E$13,2,FALSE))/(R19+VLOOKUP($P$15,'[1]Rainfall Intensity'!$B$8:$E$13,3,FALSE))^VLOOKUP($P$15,'[1]Rainfall Intensity'!$B$8:$E$13,4,FALSE),IF($D$8="C",(VLOOKUP($P$15,'[1]Rainfall Intensity'!$B$14:$E$19,2,FALSE))/(R19+VLOOKUP($P$15,'[1]Rainfall Intensity'!$B$14:$E$19,3,FALSE))^VLOOKUP($P$15,'[1]Rainfall Intensity'!$B$14:$E$19,4,FALSE),IF($D$8="D",(VLOOKUP($P$15,'[1]Rainfall Intensity'!$B$20:$E$25,2,FALSE))/(R19+VLOOKUP($P$15,'[1]Rainfall Intensity'!$B$20:$E$25,3,FALSE))^VLOOKUP($P$15,'[1]Rainfall Intensity'!$B$20:$E$25,4,FALSE),FALSE)))), "") -> 3.847008092 | P19: =IF('I - CC 87+00 to 88+40 (L)'!A20<>"", $D$10, "") -> 5 | Q19: =IF('I - CC 87+00 to 88+40 (L)'!A20<>"", IF('I - CC 87+00 to 88+40 (L)'!$B$14="Y", 0.015,VLOOKUP(N19, $I$4:$K$10, 3, FALSE)), "") -> 0.04 | R19: =IF('I - CC 87+00 to 88+40 (L)'!A20<>"", 'I - CC 87+00 to 88+40 (L)'!R20, "") -> 16.22287916 | S19: =IF(A19<>"",U19/(V19*(F19+F19+G19*V19+H19*V19)/2),"") -> 0.5872920401 | T19: =IF(A19<>"", 62.4*V19*'I - CC 87+00 to 88+40 (L)'!I20, "") -> 0.36144108 | U19: =IF('I - CC 87+00 to 88+40 (L)'!A20<>"", 'I - CC 87+00 to 88+40 (L)'!V20, "") -> 0.2917955638 | V19: =IF('I - CC 87+00 to 88+40 (L)'!X20<>"",'I - CC 87+00 to 88+40 (L)'!X20, "") -> 0.044625 | W19: =IF(A19<>"",F19+G19*V19+H19*V19, "") -> 11.26775
O20: =IF('I - CC 87+00 to 88+40 (L)'!A20<>"", IF($D$8="A",(VLOOKUP($P$16,'[1]Rainfall Intensity'!$B$2:$E$7,2,FALSE))/(R20+VLOOKUP($P$16,'[1]Rainfall Intensity'!$B$2:$E$7,3,FALSE))^VLOOKUP($P$16,'[1]Rainfall Intensity'!$B$2:$E$7,4,FALSE),IF($D$8="B",(VLOOKUP($P$16,'[1]Rainfall Intensity'!$B$8:$E$13,2,FALSE))/(R20+VLOOKUP($P$16,'[1]Rainfall Intensity'!$B$8:$E$13,3,FALSE))^VLOOKUP($P$16,'[1]Rainfall Intensity'!$B$8:$E$13,4,FALSE),IF($D$8="C",(VLOOKUP($P$16,'[1]Rainfall Intensity'!$B$14:$E$19,2,FALSE))/(R20+VLOOKUP($P$16,'[1]Rainfall Intensity'!$B$14:$E$19,3,FALSE))^VLOOKUP($P$16,'[1]Rainfall Intensity'!$B$14:$E$19,4,FALSE),IF($D$8="D",(VLOOKUP($P$16,'[1]Rainfall Intensity'!$B$20:$E$25,2,FALSE))/(R20+VLOOKUP($P$16,'[1]Rainfall Intensity'!$B$20:$E$25,3,FALSE))^VLOOKUP($P$16,'[1]Rainfall Intensity'!$B$20:$E$25,4,FALSE),FALSE)))), "") -> 4.348863618 | P20: =IF('I - CC 87+00 to 88+40 (L)'!A20<>"", $D$9, "") -> 10 | Q20: =IF('I - CC 87+00 to 88+40 (L)'!A20<>"", IF('I - CC 87+00 to 88+40 (L)'!$B$14="Y", 0.015,VLOOKUP(N19, $I$4:$K$10, 3, FALSE)), "") -> 0.04 | R20: =IF('I - CC 87+00 to 88+40 (L)'!A20<>"", 'I - CC 87+00 to 88+40 (L)'!S20, "") -> 15.91705061 | S20: =IF(A19<>"",U20/(V20*(F19+F19+G19*V20+H19*V20)/2),"") -> 0.6242379401 | T20: =IF(A19<>"", 62.4*V20*'I - CC 87+00 to 88+40 (L)'!I20, "") -> 0.384119736 | U20: =IF('I - CC 87+00 to 88+40 (L)'!A20<>"", 'I - CC 87+00 to 88+40 (L)'!W20, "") -> 0.3298613054 | V20: =IF('I - CC 87+00 to 88+40 (L)'!X20<>"",'I - CC 87+00 to 88+40 (L)'!Y20, "") -> 0.047425 | W20: =IF(A19<>"",F19+G19*V20+H19*V20, "") -> 11.28455
B86: =IF('I - CC 87+00 to 88+40 (L)'!B48<>"", 'I - CC 87+00 to 88+40 (L)'!B48, "") ->  | C86: =IF('I - CC 87+00 to 88+40 (L)'!C48<>"", 'I - CC 87+00 to 88+40 (L)'!C48, "") ->  | D86: =IF('I - CC 87+00 to 88+40 (L)'!E48<>"", 'I - CC 87+00 to 88+40 (L)'!D48, "") ->  | E86: =IF('I - CC 87+00 to 88+40 (L)'!F48<>"", 'I - CC 87+00 to 88+40 (L)'!E48, "") ->  | F86: =IF('I - CC 87+00 to 88+40 (L)'!I48<>"", 'I - CC 87+00 to 88+40 (L)'!I48, "") ->  | G86: =IF('I - CC 87+00 to 88+40 (L)'!K48<>"", 'I - CC 87+00 to 88+40 (L)'!K48, "") ->  | H86: =IF('I - CC 87+00 to 88+40 (L)'!L48<>"", 'I - CC 87+00 to 88+40 (L)'!L48, "") ->  | I86: =IF('I - CC 87+00 to 88+40 (L)'!I48<>"", IF('I - CC 87+00 to 88+40 (L)'!I48>0.2, 'I - CC 87+00 to 88+40 (L)'!I48&"*", 'I - CC 87+00 to 88+40 (L)'!I48), "") ->  | J86: =IF('I - CC 87+00 to 88+40 (L)'!M48<>"", 'I - CC 87+00 to 88+40 (L)'!M48, "") ->  | L86: =IF('I - CC 87+00 to 88+40 (L)'!N48<>"", 'I - CC 87+00 to 88+40 (L)'!N48, "") ->  | M86: =IF(J86<>"", M85+J86*L86, "") ->  | N86: =IF(A86<>"", IF(T86<$F$7, $D$7, IF(T86<$F$8, $D$8, IF(T86<$F$9, $D$9, IF(T86<$F$10, $D$10, IF(T86<#REF!,#REF!, IF( T86<#REF!,#REF!,#REF!)))))), "") ->  | O86: =IF('I - CC 87+00 to 88+40 (L)'!A48<>"", IF($B$3="A",(VLOOKUP($J$3,'[1]Rainfall Intensity'!$B$2:$E$7,2,FALSE))/('I - CC 87+00 to 88+40 (L)'!R48+VLOOKUP($J$3,'[1]Rainfall Intensity'!$B$2:$E$7,3,FALSE))^VLOOKUP($J$3,'[1]Rainfall Intensity'!$B$2:$E$7,4,FALSE),IF($B$3="B",(VLOOKUP($J$3,'[1]Rainfall Intensity'!$B$8:$E$13,2,FALSE))/('I - CC 87+00 to 88+40 (L)'!R48+VLOOKUP($J$3,'[1]Rainfall Intensity'!$B$8:$E$13,3,FALSE))^VLOOKUP($J$3,'[1]Rainfall Intensity'!$B$8:$E$13,4,FALSE),IF($B$3="C",(VLOOKUP($J$3,'[1]Rainfall Intensity'!$B$14:$E$19,2,FALSE))/('I - CC 87+00 to 88+40 (L)'!R48+VLOOKUP($J$3,'[1]Rainfall Intensity'!$B$14:$E$19,3,FALSE))^VLOOKUP($J$3,'[1]Rainfall Intensity'!$B$14:$E$19,4,FALSE),IF($B$3="D",(VLOOKUP($J$3,'[1]Rainfall Intensity'!$B$20:$E$25,2,FALSE))/('I - CC 87+00 to 88+40 (L)'!R48+VLOOKUP($J$3,'[1]Rainfall Intensity'!$B$20:$E$25,3,FALSE))^VLOOKUP($J$3,'[1]Rainfall Intensity'!$B$20:$E$25,4,FALSE),FALSE)))), "") ->  | P86: =IF('I - CC 87+00 to 88+40 (L)'!A48<>"", $J$3, "") ->  | Q86: =IF('I - CC 87+00 to 88+40 (L)'!A48<>"", VLOOKUP(N86, $D$6:$E$10, 2, FALSE), "") ->  | U86: =IF('I - CC 87+00 to 88+40 (L)'!A42<>"", 'I - CC 87+00 to 88+40 (L)'!W42, "") ->  | V86: =IF('I - CC 87+00 to 88+40 (L)'!X48<>"",'I - CC 87+00 to 88+40 (L)'!X48, "") -> 
U87: =IF('I - CC 87+00 to 88+40 (L)'!A43<>"", 'I - CC 87+00 to 88+40 (L)'!V43, "") -> 
U88: =IF('I - CC 87+00 to 88+40 (L)'!A43<>"", 'I - CC 87+00 to 88+40 (L)'!W43, "") -> 
U89: =IF('I - CC 87+00 to 88+40 (L)'!A44<>"",'I - CC 87+00 to 88+40 (L)'!V44, "") -> 
U90: =IF('I - CC 87+00 to 88+40 (L)'!A44<>"", 'I - CC 87+00 to 88+40 (L)'!W44, "") -> 
U91: =IF('I - CC 87+00 to 88+40 (L)'!A45<>"", 'I - CC 87+00 to 88+40 (L)'!V45, "") -> 
U92: =IF('I - CC 87+00 to 88+40 (L)'!A45<>"", 'I - CC 87+00 to 88+40 (L)'!W45, "") -> 
U93: =IF('I - CC 87+00 to 88+40 (L)'!A46<>"",'I - CC 87+00 to 88+40 (L)'!V46, "") -> 
U94: =IF('I - CC 87+00 to 88+40 (L)'!A46<>"", 'I - CC 87+00 to 88+40 (L)'!W46, "") -> 
U95: =IF('I - CC 87+00 to 88+40 (L)'!A47<>"", 'I - CC 87+00 to 88+40 (L)'!V47, "") -> 
U96: =IF('I - CC 87+00 to 88+40 (L)'!A47<>"", 'I - CC 87+00 to 88+40 (L)'!W47, "") -> 
U97: =IF('I - CC 87+00 to 88+40 (L)'!A48<>"",'I - CC 87+00 to 88+40 (L)'!V48, "") -> 
U98: =IF('I - CC 87+00 to 88+40 (L)'!A48<>"", 'I - CC 87+00 to 88+40 (L)'!W48, "") -> 
U99: =IF('I - CC 87+00 to 88+40 (L)'!A49<>"", 'I - CC 87+00 to 88+40 (L)'!V49, "") -> 
U100: =IF('I - CC 87+00 to 88+40 (L)'!A49<>"", 'I - CC 87+00 to 88+40 (L)'!W49, "") -> 
U101: =IF('I - CC 87+00 to 88+40 (L)'!A50<>"",'I - CC 87+00 to 88+40 (L)'!V50, "") -> 
U102: =IF('I - CC 87+00 to 88+40 (L)'!A50<>"", 'I - CC 87+00 to 88+40 (L)'!W50, "") -> 
U103: =IF('I - CC 87+00 to 88+40 (L)'!A51<>"", 'I - CC 87+00 to 88+40 (L)'!V51, "") -> 
U104: =IF('I - CC 87+00 to 88+40 (L)'!A51<>"", 'I - CC 87+00 to 88+40 (L)'!W51, "") -> 
U105: =IF('I - CC 87+00 to 88+40 (L)'!A52<>"",'I - CC 87+00 to 88+40 (L)'!V52, "") -> 
U106: =IF('I - CC 87+00 to 88+40 (L)'!A52<>"", 'I - CC 87+00 to 88+40 (L)'!W52, "") -> 
U107: =IF('I - CC 87+00 to 88+40 (L)'!A53<>"", 'I - CC 87+00 to 88+40 (L)'!V53, "") -> 
U108: =IF('I - CC 87+00 to 88+40 (L)'!A53<>"", 'I - CC 87+00 to 88+40 (L)'!W53, "") -> 
U109: =IF('I - CC 87+00 to 88+40 (L)'!A54<>"", 'I - CC 87+00 to 88+40 (L)'!V54, "") -> 
U110: =IF('I - CC 87+00 to 88+40 (L)'!A54<>"", 'I - CC 87+00 to 88+40 (L)'!W54, "") -> 
U111: =IF('I - CC 87+00 to 88+40 (L)'!A55<>"",'I - CC 87+00 to 88+40 (L)'!V55, "") -> 
U112: =IF('I - CC 87+00 to 88+40 (L)'!A55<>"", 'I - CC 87+00 to 88+40 (L)'!W55, "") -> 
U113: =IF('I - CC 87+00 to 88+40 (L)'!A56<>"", 'I - CC 87+00 to 88+40 (L)'!V56, "") -> 
U114: =IF('I - CC 87+00 to 88+40 (L)'!A56<>"", 'I - CC 87+00 to 88+40 (L)'!W56, "") -> 

Sheet I - CC 87+50 to 88+40 (R)
A1: Ditch Analysis Input Worksheet
A2: PID: | B2: 114496
A3: Date | B3: =TODAY() -> 2024-06-27
A4: Project | B4: Columbia Connector
A5: Location | B5: Sta. 87+00 to 88+40 Right
A6: Designer | B6: ZTM
A7: Checker | B7: SNS
A8: Rainfall Area | B8: C
A9: Depth Design Year | B9: 10
A10: Shear Stress Design Year | B10: 5
A11: Time to first section | B11: 10 | X11: MACRO COLUMN (ctrl q)
A12: Pick up Flow:
A14: Paved Gutter? (Y/N) | B14: n
A17: Ref. No. | B17: Begin | C17: End | D17: Side | E17: Length | F17: Shape | G17: Begin | H17: End | I17: Grade | J17: Radius/Width | K17: Inslope (ft./ft.) | L17: Backslope (ft./ft.) | M17: Area (acres) | N17: Coefficient | O17: CA (sum) | P17: Ditch Time | Q17: Ditch Time | R17: Total (1) | S17: Total (2) | T17: Intensity (1) | U17: Intensity (2) | V17: Q (1) | W17: Q (2) | X17: Flow Depth (1) | Y17: Flow Depth (2) | Z17: Hydraulic Radius (1) | AA17: Hydraulic Radius (2) | AB17: Qi (1) | AC17: Qi (2) | AD17: Qi/Q (1) | AE17: Qi/Q (2)
A18: 1 | B18: 8750 | C18: 8800 | D18: R | E18: =C18-B18 -> 50 | F18: Trapazoidal | G18: 493.9 | H18: 492.42 | I18: =ROUND((G18-H18)/E18,4) -> 0.0296 | J18: 2 | K18: 2 | L18: 2 | M18: 0.033 | N18: 0.7 | O18: =N18*M18 -> 0.0231 | P18: 0 | Q18: 0 | R18: =B11 -> 10 | S18: =B11 -> 10 | T18: =IF($B$8="A",(VLOOKUP($B$10,'[1]Rainfall Intensity'!$B$2:$E$7,2,FALSE))/($R$18+VLOOKUP($B$10,'[1]Rainfall Intensity'!$B$2:$E$7,3,FALSE))^VLOOKUP($B$10,'[1]Rainfall Intensity'!$B$2:$E$7,4,FALSE),IF($B$8="B",(VLOOKUP($B$10,'[1]Rainfall Intensity'!$B$8:$E$13,2,FALSE))/($R$18+VLOOKUP($B$10,'[1]Rainfall Intensity'!$B$8:$E$13,3,FALSE))^VLOOKUP($B$10,'[1]Rainfall Intensity'!$B$8:$E$13,4,FALSE),IF($B$8="C",(VLOOKUP($B$10,'[1]Rainfall Intensity'!$B$14:$E$19,2,FALSE))/($R$18+VLOOKUP($B$10,'[1]Rainfall Intensity'!$B$14:$E$19,3,FALSE))^VLOOKUP($B$10,'[1]Rainfall Intensity'!$B$14:$E$19,4,FALSE),IF($B$8="D",(VLOOKUP($B$10,'[1]Rainfall Intensity'!$B$20:$E$25,2,FALSE))/($R$18+VLOOKUP($B$10,'[1]Rainfall Intensity'!$B$20:$E$25,3,FALSE))^VLOOKUP($B$10,'[1]Rainfall Intensity'!$B$20:$E$25,4,FALSE),FALSE)))) -> 4.820279563 | U18: =IF($B$8="A",(VLOOKUP($B$9,'[1]Rainfall Intensity'!$B$2:$E$7,2,FALSE))/(S18+VLOOKUP($B$9,'[1]Rainfall Intensity'!$B$2:$E$7,3,FALSE))^VLOOKUP($B$9,'[1]Rainfall Intensity'!$B$2:$E$7,4,FALSE),IF($B$8="B",(VLOOKUP($B$9,'[1]Rainfall Intensity'!$B$8:$E$13,2,FALSE))/(S18+VLOOKUP($B$9,'[1]Rainfall Intensity'!$B$8:$E$13,3,FALSE))^VLOOKUP($B$9,'[1]Rainfall Intensity'!$B$8:$E$13,4,FALSE),IF($B$8="C",(VLOOKUP($B$9,'[1]Rainfall Intensity'!$B$14:$E$19,2,FALSE))/(S18+VLOOKUP($B$9,'[1]Rainfall Intensity'!$B$14:$E$19,3,FALSE))^VLOOKUP($B$9,'[1]Rainfall Intensity'!$B$14:$E$19,4,FALSE),IF($B$8="D",(VLOOKUP($B$9,'[1]Rainfall Intensity'!$B$20:$E$25,2,FALSE))/(S18+VLOOKUP($B$9,'[1]Rainfall Intensity'!$B$20:$E$25,3,FALSE))^VLOOKUP($B$9,'[1]Rainfall Intensity'!$B$20:$E$25,4,FALSE),FALSE)))) -> 5.321936159 | V18: =O18*T18+$B$12 -> 0.1113484579 | W18: =O18*U18+$B$12 -> 0.1229367253 | X18: 0.09385 | Y18: 0.09865 | Z18: =(X18*((J18+(J18+K18*X18+L18*X18))/2))/(J18+SQRT(X18^2+(X18*L18)^2)+SQRT(X18^2+(X18*K18)^2)) -> 0.08485134518 | AA18: =(Y18*((J18+(J18+K18*Y18+L18*Y18))/2))/(J18+SQRT(Y18^2+(Y18*L18)^2)+SQRT(Y18^2+(Y18*K18)^2)) -> 0.08879475555 | AB18: =1.486/'R- CC 87+50 to 88+40 (R)'!Q16*Z18*SQRT(I18)*X18*((J18+(J18+X18*K18+X18*L18))/2) -> 0.1113487764 | AC18: =1.486/'R- CC 87+50 to 88+40 (R)'!Q16*AA18*SQRT(I18)*Y18*((J18+(J18+Y18*K18+Y18*L18))/2) -> 0.1230207683 | AD18: =AB18-V18 -> 3.185385772e-07 | AE18: 8.404299289e-05
A19: 2 | B19: 8800 | C19: 8840 | D19: R | E19: 40 | F19: Trapazoidal | G19: 492.42 | H19: 485 | I19: 0.1855 | J19: 11 | K19: 2 | L19: 4 | M19: 0.032 | N19: 0.7 | O19: =O18+M19*N19 -> 0.0455 | P19: =E18/(60*(V18/(X18*((J18+J18+X18*K18+X18*L18)/2)))) -> 1.536585006 | Q19: =E18/(60*(W18/(Y18*((J18+J18+Y18*K18+Y18*L18)/2)))) -> 1.469344253 | R19: =R18+P19 -> 11.53658501 | S19: =S18+Q19 -> 11.46934425 | T19: =IF($B$8="A",(VLOOKUP($B$10,'[1]Rainfall Intensity'!$B$2:$E$7,2,FALSE))/($R$19+VLOOKUP($B$10,'[1]Rainfall Intensity'!$B$2:$E$7,3,FALSE))^VLOOKUP($B$10,'[1]Rainfall Intensity'!$B$2:$E$7,4,FALSE),IF($B$8="B",(VLOOKUP($B$10,'[1]Rainfall Intensity'!$B$8:$E$13,2,FALSE))/($R$19+VLOOKUP($B$10,'[1]Rainfall Intensity'!$B$8:$E$13,3,FALSE))^VLOOKUP($B$10,'[1]Rainfall Intensity'!$B$8:$E$13,4,FALSE),IF($B$8="C",(VLOOKUP($B$10,'[1]Rainfall Intensity'!$B$14:$E$19,2,FALSE))/($R$19+VLOOKUP($B$10,'[1]Rainfall Intensity'!$B$14:$E$19,3,FALSE))^VLOOKUP($B$10,'[1]Rainfall Intensity'!$B$14:$E$19,4,FALSE),IF($B$8="D",(VLOOKUP($B$10,'[1]Rainfall Intensity'!$B$20:$E$25,2,FALSE))/($R$19+VLOOKUP($B$10,'[1]Rainfall Intensity'!$B$20:$E$25,3,FALSE))^VLOOKUP($B$10,'[1]Rainfall Intensity'!$B$20:$E$25,4,FALSE),FALSE)))) -> 4.533368561 | U19: =IF($B$8="A",(VLOOKUP($B$9,'[1]Rainfall Intensity'!$B$2:$E$7,2,FALSE))/(S19+VLOOKUP($B$9,'[1]Rainfall Intensity'!$B$2:$E$7,3,FALSE))^VLOOKUP($B$9,'[1]Rainfall Intensity'!$B$2:$E$7,4,FALSE),IF($B$8="B",(VLOOKUP($B$9,'[1]Rainfall Intensity'!$B$8:$E$13,2,FALSE))/(S19+VLOOKUP($B$9,'[1]Rainfall Intensity'!$B$8:$E$13,3,FALSE))^VLOOKUP($B$9,'[1]Rainfall Intensity'!$B$8:$E$13,4,FALSE),IF($B$8="C",(VLOOKUP($B$9,'[1]Rainfall Intensity'!$B$14:$E$19,2,FALSE))/(S19+VLOOKUP($B$9,'[1]Rainfall Intensity'!$B$14:$E$19,3,FALSE))^VLOOKUP($B$9,'[1]Rainfall Intensity'!$B$14:$E$19,4,FALSE),IF($B$8="D",(VLOOKUP($B$9,'[1]Rainfall Intensity'!$B$20:$E$25,2,FALSE))/(S19+VLOOKUP($B$9,'[1]Rainfall Intensity'!$B$20:$E$25,3,FALSE))^VLOOKUP($B$9,'[1]Rainfall Intensity'!$B$20:$E$25,4,FALSE),FALSE)))) -> 5.039050561 | V19: =O19*T19+$B$12 -> 0.2062682695 | W19: 0.2292768005 | X19: 0.0342625 | Y19: 0.0361625 | Z19: 0.03391097217 | AA19: 0.03577132509 | AB19: =1.486/'R- CC 87+50 to 88+40 (R)'!Q17*Z19*SQRT(I19)*X19*((J19+(J19+X19*K19+X19*L19))/2) -> 0.2064058927 | AC19: =1.486/'R- CC 87+50 to 88+40 (R)'!Q17*AA19*SQRT(I19)*Y19*((J19+(J19+Y19*K19+Y19*L19))/2) -> 0.2299212863 | AD19: 0.000137623176 | AE19: 0.0006444858223

Sheet R- CC 87+50 to 88+40 (R)
A1: Ditch Analysis
A2: PID: | D2: ='I - CC 87+50 to 88+40 (R)'!B2 -> 114496 | I2: Ditch Lining | K2: Manning's "n" | L2: Allowable Shear Stress
A3: Date: | D3: ='I - CC 87+50 to 88+40 (R)'!B3 -> 2024-06-27
A4: Project: | D4: ='I - CC 87+50 to 88+40 (R)'!B4 -> Columbia Connector | I4: Seed | K4: 0.04 | L4: 0.4
A5: Location: | D5: ='I - CC 87+50 to 88+40 (R)'!B5 -> Sta. 87+00 to 88+40 Right | I5: Jute Mat | K5: 0.04 | L5: 0.45
A6: Designer: | D6: ='I - CC 87+50 to 88+40 (R)'!B6 -> ZTM | I6: Temporary Mat | K6: 0.04 | L6: 1
A7: Checker: | D7: ='I - CC 87+50 to 88+40 (R)'!B7 -> SNS | I7: Permanent Mat, Type 1 | K7: 0.04 | L7: 2
A8: Rainfall Area: | D8: ='I - CC 87+50 to 88+40 (R)'!B8 -> C | I8: Permanent Mat, Type 2 | K8: 0.04 | L8: 3
A9: Depth Storm Frequency: | D9: ='I - CC 87+50 to 88+40 (R)'!B9 -> 10 | I9: Permanent Mat, Type 3 | K9: 0.04 | L9: 5 | N9: * Grade Steeper than Allowable
A10: Shear Stress Storm Frequency: | D10: ='I - CC 87+50 to 88+40 (R)'!B10 -> 5 | I10: RCP, Type B | K10: 0.06 | L10: 6
A11: Pickup Flow (cfs): | D11: ='I - CC 87+50 to 88+40 (R)'!B12 -> 0
A13: Station | F13: Dimension | J13: Rainfall | N13: Lining Type | O13: Discharge
A14: Ref. No. | B14: Begin | C14: End | D14: Side | E14: Length (ft.) | F14: Radius/Width (ft.) | G14: Inslope (ft./ft.) | H14: Backslope (ft./ft.) | I14: Grade (ft./ft.) | J14: Area (acres) | K14: Total Area (acres) | L14: Runoff Coefficient | M14: CA (sum) | N14: Protection Type | O14: Intensity (in./hr.) | P14: Storm Freq. (Yrs.) | Q14: Mann. Coef. | R14: Time Flow (min.) | S14: Velocity Flow (fps) | T14: Shear (lbs./sq.ft) | U14: Design Flow (cfs.) | V14: Depth Flow (ft.) | W14: Width Flow (ft.)
A15: =IF('I - CC 87+50 to 88+40 (R)'!A18<>"", 'I - CC 87+50 to 88+40 (R)'!A18, "") -> 1 | B15: =IF('I - CC 87+50 to 88+40 (R)'!B18<>"", 'I - CC 87+50 to 88+40 (R)'!B18, "") -> 8750 | C15: =IF('I - CC 87+50 to 88+40 (R)'!C18<>"", 'I - CC 87+50 to 88+40 (R)'!C18, "") -> 8800 | D15: =IF('I - CC 87+50 to 88+40 (R)'!D18<>"", 'I - CC 87+50 to 88+40 (R)'!D18, "") -> R | E15: =IF('I - CC 87+50 to 88+40 (R)'!E18<>"", 'I - CC 87+50 to 88+40 (R)'!E18, "") -> 50 | F15: =IF('I - CC 87+50 to 88+40 (R)'!J18<>"", 'I - CC 87+50 to 88+40 (R)'!J18, "") -> 2 | G15: =IF('I - CC 87+50 to 88+40 (R)'!K18<>"", 'I - CC 87+50 to 88+40 (R)'!K18, "") -> 2 | H15: =IF('I - CC 87+50 to 88+40 (R)'!L18<>"", 'I - CC 87+50 to 88+40 (R)'!L18, "") -> 2 | I15: =IF('I - CC 87+50 to 88+40 (R)'!I18<>"", IF('I - CC 87+50 to 88+40 (R)'!I18>0.2, 'I - CC 87+50 to 88+40 (R)'!I18&"*", 'I - CC 87+50 to 88+40 (R)'!I18), "") -> 0.0296 | J15: =IF('I - CC 87+50 to 88+40 (R)'!M18<>"", 'I - CC 87+50 to 88+40 (R)'!M18, "") -> 0.033 | K15: =IF(J15<>"",J15, "") -> 0.033 | L15: =IF('I - CC 87+50 to 88+40 (R)'!N18<>"", 'I - CC 87+50 to 88+40 (R)'!N18, "") -> 0.7 | M15: =IF(J15<>"", J15*L15, "") -> 0.0231 | N15: =IF(A15<>"", IF('I - CC 87+50 to 88+40 (R)'!$B$14="Y", "Paved Gutter",IF(T15<$L$4, $I$4, IF(T15<$L$5, $I$5, IF(T15<$L$6, $I$6, IF(T15<$L$7, $I$7, IF(T15<$L$8, $I$8, IF(T15<$L$9, $I$9, $I$10))))))), "") -> Seed | O15: =IF('I - CC 87+50 to 88+40 (R)'!A18<>"", IF($D$8="A",(VLOOKUP($P$15,'[1]Rainfall Intensity'!$B$2:$E$7,2,FALSE))/(R15+VLOOKUP($P$15,'[1]Rainfall Intensity'!$B$2:$E$7,3,FALSE))^VLOOKUP($P$15,'[1]Rainfall Intensity'!$B$2:$E$7,4,FALSE),IF($D$8="B",(VLOOKUP($P$15,'[1]Rainfall Intensity'!$B$8:$E$13,2,FALSE))/(R15+VLOOKUP($P$15,'[1]Rainfall Intensity'!$B$8:$E$13,3,FALSE))^VLOOKUP($P$15,'[1]Rainfall Intensity'!$B$8:$E$13,4,FALSE),IF($D$8="C",(VLOOKUP($P$15,'[1]Rainfall Intensity'!$B$14:$E$19,2,FALSE))/(R15+VLOOKUP($P$15,'[1]Rainfall Intensity'!$B$14:$E$19,3,FALSE))^VLOOKUP($P$15,'[1]Rainfall Intensity'!$B$14:$E$19,4,FALSE),IF($D$8="D",(VLOOKUP($P$15,'[1]Rainfall Intensity'!$B$20:$E$25,2,FALSE))/(R15+VLOOKUP($P$15,'[1]Rainfall Intensity'!$B$20:$E$25,3,FALSE))^VLOOKUP($P$15,'[1]Rainfall Intensity'!$B$20:$E$25,4,FALSE),FALSE)))), "") -> 4.820279563 | P15: =IF('I - CC 87+50 to 88+40 (R)'!A18<>"", $D$10, "") -> 5 | Q15: =IF('I - CC 87+50 to 88+40 (R)'!A18<>"", IF('I - CC 87+50 to 88+40 (R)'!$B$14="Y", 0.015,VLOOKUP(N15, $I$4:$K$10, 3, FALSE)), "") -> 0.04 | R15: =IF('I - CC 87+50 to 88+40 (R)'!A18<>"", 'I - CC 87+50 to 88+40 (R)'!R18, "") -> 10 | S15: =IF(A15<>"",U15/(V15*(F15+F15+G15*V15+H15*V15)/2),"") -> 0.5423281694 | T15: =IF(A15<>"", 62.4*V15*'I - CC 87+50 to 88+40 (R)'!I18, "") -> 0.173344704 | U15: =IF('I - CC 87+50 to 88+40 (R)'!A18<>"", 'I - CC 87+50 to 88+40 (R)'!V18, "") -> 0.1113484579 | V15: =IF('I - CC 87+50 to 88+40 (R)'!X18<>"",'I - CC 87+50 to 88+40 (R)'!X18, "") -> 0.09385 | W15: =IF(A15<>"",F15+G15*V15+H15*V15, "") -> 2.3754
O16: =IF('I - CC 87+50 to 88+40 (R)'!A18<>"", IF($D$8="A",(VLOOKUP($P$16,'[1]Rainfall Intensity'!$B$2:$E$7,2,FALSE))/(R16+VLOOKUP($P$16,'[1]Rainfall Intensity'!$B$2:$E$7,3,FALSE))^VLOOKUP($P$16,'[1]Rainfall Intensity'!$B$2:$E$7,4,FALSE),IF($D$8="B",(VLOOKUP($P$16,'[1]Rainfall Intensity'!$B$8:$E$13,2,FALSE))/(R16+VLOOKUP($P$16,'[1]Rainfall Intensity'!$B$8:$E$13,3,FALSE))^VLOOKUP($P$16,'[1]Rainfall Intensity'!$B$8:$E$13,4,FALSE),IF($D$8="C",(VLOOKUP($P$16,'[1]Rainfall Intensity'!$B$14:$E$19,2,FALSE))/(R16+VLOOKUP($P$16,'[1]Rainfall Intensity'!$B$14:$E$19,3,FALSE))^VLOOKUP($P$16,'[1]Rainfall Intensity'!$B$14:$E$19,4,FALSE),IF($D$8="D",(VLOOKUP($P$16,'[1]Rainfall Intensity'!$B$20:$E$25,2,FALSE))/(R16+VLOOKUP($P$16,'[1]Rainfall Intensity'!$B$20:$E$25,3,FALSE))^VLOOKUP($P$16,'[1]Rainfall Intensity'!$B$20:$E$25,4,FALSE),FALSE)))), "") -> 5.321936159 | P16: =IF('I - CC 87+50 to 88+40 (R)'!A18<>"", $D$9, "") -> 10 | Q16: =IF('I - CC 87+50 to 88+40 (R)'!A18<>"", IF('I - CC 87+50 to 88+40 (R)'!$B$14="Y", 0.015,VLOOKUP(N15, $I$4:$K$10, 3, FALSE)), "") -> 0.04 | R16: =IF('I - CC 87+50 to 88+40 (R)'!A18<>"", 'I - CC 87+50 to 88+40 (R)'!S18, "") -> 10 | S16: =IF(A15<>"",U16/(V16*(F15+F15+G15*V16+H15*V16)/2),"") -> 0.5671464202 | T16: =IF(A15<>"", 62.4*V16*'I - CC 87+50 to 88+40 (R)'!I18, "") -> 0.182210496 | U16: =IF('I - CC 87+50 to 88+40 (R)'!A18<>"", 'I - CC 87+50 to 88+40 (R)'!W18, "") -> 0.1229367253 | V16: =IF('I - CC 87+50 to 88+40 (R)'!X18<>"",'I - CC 87+50 to 88+40 (R)'!Y18, "") -> 0.09865 | W16: =IF(A15<>"",F15+G15*V16+H15*V16, "") -> 2.3946
A17: =IF('I - CC 87+50 to 88+40 (R)'!A19<>"", 'I - CC 87+50 to 88+40 (R)'!A19, "") -> 2 | B17: =IF('I - CC 87+50 to 88+40 (R)'!B19<>"", 'I - CC 87+50 to 88+40 (R)'!B19, "") -> 8800 | C17: =IF('I - CC 87+50 to 88+40 (R)'!C19<>"", 'I - CC 87+50 to 88+40 (R)'!C19, "") -> 8840 | D17: =IF('I - CC 87+50 to 88+40 (R)'!E19<>"", 'I - CC 87+50 to 88+40 (R)'!D19, "") -> R | E17: =IF('I - CC 87+50 to 88+40 (R)'!F19<>"", 'I - CC 87+50 to 88+40 (R)'!E19, "") -> 40 | F17: =IF('I - CC 87+50 to 88+40 (R)'!J19<>"", 'I - CC 87+50 to 88+40 (R)'!J19, "") -> 11 | G17: =IF('I - CC 87+50 to 88+40 (R)'!K19<>"", 'I - CC 87+50 to 88+40 (R)'!K19, "") -> 2 | H17: =IF('I - CC 87+50 to 88+40 (R)'!L19<>"", 'I - CC 87+50 to 88+40 (R)'!L19, "") -> 4 | I17: =IF('I - CC 87+50 to 88+40 (R)'!I19<>"", IF('I - CC 87+50 to 88+40 (R)'!I19>0.2, 'I - CC 87+50 to 88+40 (R)'!I19&"*", 'I - CC 87+50 to 88+40 (R)'!I19), "") -> 0.1855 | J17: =IF('I - CC 87+50 to 88+40 (R)'!M19<>"", 'I - CC 87+50 to 88+40 (R)'!M19, "") -> 0.032 | K17: =IF(J17<>"",K15+J17, "") -> 0.065 | L17: =IF('I - CC 87+50 to 88+40 (R)'!N19<>"", 'I - CC 87+50 to 88+40 (R)'!N19, "") -> 0.7 | M17: =IF(J17<>"", M15+J17*L17, "") -> 0.0455 | N17: =IF(A17<>"", IF('I - CC 87+50 to 88+40 (R)'!$B$14="Y", "Paved Gutter",IF(T17<$L$4, $I$4, IF(T17<$L$5, $I$5, IF(T17<$L$6, $I$6, IF(T17<$L$7, $I$7, IF(T17<$L$8, $I$8, IF(T17<$L$9, $I$9, $I$10))))))), "") -> Seed | O17: =IF('I - CC 87+50 to 88+40 (R)'!A19<>"", IF($D$8="A",(VLOOKUP($P$15,'[1]Rainfall Intensity'!$B$2:$E$7,2,FALSE))/(R17+VLOOKUP($P$15,'[1]Rainfall Intensity'!$B$2:$E$7,3,FALSE))^VLOOKUP($P$15,'[1]Rainfall Intensity'!$B$2:$E$7,4,FALSE),IF($D$8="B",(VLOOKUP($P$15,'[1]Rainfall Intensity'!$B$8:$E$13,2,FALSE))/(R17+VLOOKUP($P$15,'[1]Rainfall Intensity'!$B$8:$E$13,3,FALSE))^VLOOKUP($P$15,'[1]Rainfall Intensity'!$B$8:$E$13,4,FALSE),IF($D$8="C",(VLOOKUP($P$15,'[1]Rainfall Intensity'!$B$14:$E$19,2,FALSE))/(R17+VLOOKUP($P$15,'[1]Rainfall Intensity'!$B$14:$E$19,3,FALSE))^VLOOKUP($P$15,'[1]Rainfall Intensity'!$B$14:$E$19,4,FALSE),IF($D$8="D",(VLOOKUP($P$15,'[1]Rainfall Intensity'!$B$20:$E$25,2,FALSE))/(R17+VLOOKUP($P$15,'[1]Rainfall Intensity'!$B$20:$E$25,3,FALSE))^VLOOKUP($P$15,'[1]Rainfall Intensity'!$B$20:$E$25,4,FALSE),FALSE)))), "") -> 4.533368561 | P17: =IF('I - CC 87+50 to 88+40 (R)'!A19<>"", $D$10, "") -> 5 | Q17: =IF('I - CC 87+50 to 88+40 (R)'!A19<>"", IF('I - CC 87+50 to 88+40 (R)'!$B$14="Y", 0.015,VLOOKUP(N17, $I$4:$K$10, 3, FALSE)), "") -> 0.04 | R17: =IF('I - CC 87+50 to 88+40 (R)'!A19<>"", 'I - CC 87+50 to 88+40 (R)'!R19, "") -> 11.53658501 | S17: =IF(A17<>"",U17/(V17*(F17+F17+G17*V17+H17*V17)/2),"") -> 0.5422272616 | T17: =IF(A17<>"", 62.4*V17*'I - CC 87+50 to 88+40 (R)'!I19, "") -> 0.39659529 | U17: =IF('I - CC 87+50 to 88+40 (R)'!A19<>"",'I - CC 87+50 to 88+40 (R)'!V19, "") -> 0.2062682695 | V17: =IF('I - CC 87+50 to 88+40 (R)'!X19<>"",'I - CC 87+50 to 88+40 (R)'!X19, "") -> 0.0342625 | W17: =IF(A17<>"",F17+G17*V17+H17*V17, "") -> 11.205575
O18: =IF('I - CC 87+50 to 88+40 (R)'!A19<>"", IF($D$8="A",(VLOOKUP($P$16,'[1]Rainfall Intensity'!$B$2:$E$7,2,FALSE))/(R18+VLOOKUP($P$16,'[1]Rainfall Intensity'!$B$2:$E$7,3,FALSE))^VLOOKUP($P$16,'[1]Rainfall Intensity'!$B$2:$E$7,4,FALSE),IF($D$8="B",(VLOOKUP($P$16,'[1]Rainfall Intensity'!$B$8:$E$13,2,FALSE))/(R18+VLOOKUP($P$16,'[1]Rainfall Intensity'!$B$8:$E$13,3,FALSE))^VLOOKUP($P$16,'[1]Rainfall Intensity'!$B$8:$E$13,4,FALSE),IF($D$8="C",(VLOOKUP($P$16,'[1]Rainfall Intensity'!$B$14:$E$19,2,FALSE))/(R18+VLOOKUP($P$16,'[1]Rainfall Intensity'!$B$14:$E$19,3,FALSE))^VLOOKUP($P$16,'[1]Rainfall Intensity'!$B$14:$E$19,4,FALSE),IF($D$8="D",(VLOOKUP($P$16,'[1]Rainfall Intensity'!$B$20:$E$25,2,FALSE))/(R18+VLOOKUP($P$16,'[1]Rainfall Intensity'!$B$20:$E$25,3,FALSE))^VLOOKUP($P$16,'[1]Rainfall Intensity'!$B$20:$E$25,4,FALSE),FALSE)))), "") -> 5.039050561 | P18: =IF('I - CC 87+50 to 88+40 (R)'!A19<>"", $D$9, "") -> 10 | Q18: =IF('I - CC 87+50 to 88+40 (R)'!A19<>"", IF('I - CC 87+50 to 88+40 (R)'!$B$14="Y", 0.015,VLOOKUP(N17, $I$4:$K$10, 3, FALSE)), "") -> 0.04 | R18: =IF('I - CC 87+50 to 88+40 (R)'!A19<>"", 'I - CC 87+50 to 88+40 (R)'!S19, "") -> 11.46934425 | S18: =IF(A17<>"",U18/(V18*(F17+F17+G17*V18+H17*V18)/2),"") -> 0.5707510713 | T18: =IF(A17<>"", 62.4*V18*'I - CC 87+50 to 88+40 (R)'!I19, "") -> 0.41858817 | U18: =IF('I - CC 87+50 to 88+40 (R)'!A19<>"", 'I - CC 87+50 to 88+40 (R)'!W19, "") -> 0.2292768005 | V18: =IF('I - CC 87+50 to 88+40 (R)'!X19<>"",'I - CC 87+50 to 88+40 (R)'!Y19, "") -> 0.0361625 | W18: =IF(A17<>"",F17+G17*V18+H17*V18, "") -> 11.216975
B86: =IF('I - CC 87+50 to 88+40 (R)'!B47<>"", 'I - CC 87+50 to 88+40 (R)'!B47, "") ->  | C86: =IF('I - CC 87+50 to 88+40 (R)'!C47<>"", 'I - CC 87+50 to 88+40 (R)'!C47, "") ->  | D86: =IF('I - CC 87+50 to 88+40 (R)'!E47<>"", 'I - CC 87+50 to 88+40 (R)'!D47, "") ->  | E86: =IF('I - CC 87+50 to 88+40 (R)'!F47<>"", 'I - CC 87+50 to 88+40 (R)'!E47, "") ->  | F86: =IF('I - CC 87+50 to 88+40 (R)'!I47<>"", 'I - CC 87+50 to 88+40 (R)'!I47, "") ->  | G86: =IF('I - CC 87+50 to 88+40 (R)'!K47<>"", 'I - CC 87+50 to 88+40 (R)'!K47, "") ->  | H86: =IF('I - CC 87+50 to 88+40 (R)'!L47<>"", 'I - CC 87+50 to 88+40 (R)'!L47, "") ->  | I86: =IF('I - CC 87+50 to 88+40 (R)'!I47<>"", IF('I - CC 87+50 to 88+40 (R)'!I47>0.2, 'I - CC 87+50 to 88+40 (R)'!I47&"*", 'I - CC 87+50 to 88+40 (R)'!I47), "") ->  | J86: =IF('I - CC 87+50 to 88+40 (R)'!M47<>"", 'I - CC 87+50 to 88+40 (R)'!M47, "") ->  | L86: =IF('I - CC 87+50 to 88+40 (R)'!N47<>"", 'I - CC 87+50 to 88+40 (R)'!N47, "") ->  | M86: =IF(J86<>"", M85+J86*L86, "") ->  | N86: =IF(A86<>"", IF(T86<$F$7, $D$7, IF(T86<$F$8, $D$8, IF(T86<$F$9, $D$9, IF(T86<$F$10, $D$10, IF(T86<#REF!,#REF!, IF( T86<#REF!,#REF!,#REF!)))))), "") ->  | O86: =IF('I - CC 87+50 to 88+40 (R)'!A47<>"", IF($B$3="A",(VLOOKUP($J$3,'[1]Rainfall Intensity'!$B$2:$E$7,2,FALSE))/('I - CC 87+50 to 88+40 (R)'!R47+VLOOKUP($J$3,'[1]Rainfall Intensity'!$B$2:$E$7,3,FALSE))^VLOOKUP($J$3,'[1]Rainfall Intensity'!$B$2:$E$7,4,FALSE),IF($B$3="B",(VLOOKUP($J$3,'[1]Rainfall Intensity'!$B$8:$E$13,2,FALSE))/('I - CC 87+50 to 88+40 (R)'!R47+VLOOKUP($J$3,'[1]Rainfall Intensity'!$B$8:$E$13,3,FALSE))^VLOOKUP($J$3,'[1]Rainfall Intensity'!$B$8:$E$13,4,FALSE),IF($B$3="C",(VLOOKUP($J$3,'[1]Rainfall Intensity'!$B$14:$E$19,2,FALSE))/('I - CC 87+50 to 88+40 (R)'!R47+VLOOKUP($J$3,'[1]Rainfall Intensity'!$B$14:$E$19,3,FALSE))^VLOOKUP($J$3,'[1]Rainfall Intensity'!$B$14:$E$19,4,FALSE),IF($B$3="D",(VLOOKUP($J$3,'[1]Rainfall Intensity'!$B$20:$E$25,2,FALSE))/('I - CC 87+50 to 88+40 (R)'!R47+VLOOKUP($J$3,'[1]Rainfall Intensity'!$B$20:$E$25,3,FALSE))^VLOOKUP($J$3,'[1]Rainfall Intensity'!$B$20:$E$25,4,FALSE),FALSE)))), "") ->  | P86: =IF('I - CC 87+50 to 88+40 (R)'!A47<>"", $J$3, "") ->  | Q86: =IF('I - CC 87+50 to 88+40 (R)'!A47<>"", VLOOKUP(N86, $D$6:$E$10, 2, FALSE), "") ->  | U86: =IF('I - CC 87+50 to 88+40 (R)'!A41<>"", 'I - CC 87+50 to 88+40 (R)'!W41, "") ->  | V86: =IF('I - CC 87+50 to 88+40 (R)'!X47<>"",'I - CC 87+50 to 88+40 (R)'!X47, "") ->  | W86: =IF(A86<>"",F86+G86*V86+H86*V86, "") -> 
U87: =IF('I - CC 87+50 to 88+40 (R)'!A42<>"", 'I - CC 87+50 to 88+40 (R)'!V42, "") -> 
U88: =IF('I - CC 87+50 to 88+40 (R)'!A42<>"", 'I - CC 87+50 to 88+40 (R)'!W42, "") -> 
U89: =IF('I - CC 87+50 to 88+40 (R)'!A43<>"",'I - CC 87+50 to 88+40 (R)'!V43, "") -> 
U90: =IF('I - CC 87+50 to 88+40 (R)'!A43<>"", 'I - CC 87+50 to 88+40 (R)'!W43, "") -> 
U91: =IF('I - CC 87+50 to 88+40 (R)'!A44<>"", 'I - CC 87+50 to 88+40 (R)'!V44, "") -> 
U92: =IF('I - CC 87+50 to 88+40 (R)'!A44<>"", 'I - CC 87+50 to 88+40 (R)'!W44, "") -> 
U93: =IF('I - CC 87+50 to 88+40 (R)'!A45<>"",'I - CC 87+50 to 88+40 (R)'!V45, "") -> 
U94: =IF('I - CC 87+50 to 88+40 (R)'!A45<>"", 'I - CC 87+50 to 88+40 (R)'!W45, "") -> 
U95: =IF('I - CC 87+50 to 88+40 (R)'!A46<>"", 'I - CC 87+50 to 88+40 (R)'!V46, "") -> 
U96: =IF('I - CC 87+50 to 88+40 (R)'!A46<>"", 'I - CC 87+50 to 88+40 (R)'!W46, "") -> 
U97: =IF('I - CC 87+50 to 88+40 (R)'!A47<>"",'I - CC 87+50 to 88+40 (R)'!V47, "") -> 
U98: =IF('I - CC 87+50 to 88+40 (R)'!A47<>"", 'I - CC 87+50 to 88+40 (R)'!W47, "") -> 
U99: =IF('I - CC 87+50 to 88+40 (R)'!A48<>"", 'I - CC 87+50 to 88+40 (R)'!V48, "") -> 
U100: =IF('I - CC 87+50 to 88+40 (R)'!A48<>"", 'I - CC 87+50 to 88+40 (R)'!W48, "") -> 
U101: =IF('I - CC 87+50 to 88+40 (R)'!A49<>"",'I - CC 87+50 to 88+40 (R)'!V49, "") -> 
U102: =IF('I - CC 87+50 to 88+40 (R)'!A49<>"", 'I - CC 87+50 to 88+40 (R)'!W49, "") -> 
U103: =IF('I - CC 87+50 to 88+40 (R)'!A50<>"", 'I - CC 87+50 to 88+40 (R)'!V50, "") -> 
U104: =IF('I - CC 87+50 to 88+40 (R)'!A50<>"", 'I - CC 87+50 to 88+40 (R)'!W50, "") -> 
U105: =IF('I - CC 87+50 to 88+40 (R)'!A51<>"",'I - CC 87+50 to 88+40 (R)'!V51, "") -> 
U106: =IF('I - CC 87+50 to 88+40 (R)'!A51<>"", 'I - CC 87+50 to 88+40 (R)'!W51, "") -> 
U107: =IF('I - CC 87+50 to 88+40 (R)'!A52<>"", 'I - CC 87+50 to 88+40 (R)'!V52, "") -> 
U108: =IF('I - CC 87+50 to 88+40 (R)'!A52<>"", 'I - CC 87+50 to 88+40 (R)'!W52, "") -> 
U109: =IF('I - CC 87+50 to 88+40 (R)'!A53<>"", 'I - CC 87+50 to 88+40 (R)'!V53, "") -> 
U110: =IF('I - CC 87+50 to 88+40 (R)'!A53<>"", 'I - CC 87+50 to 88+40 (R)'!W53, "") -> 
U111: =IF('I - CC 87+50 to 88+40 (R)'!A54<>"",'I - CC 87+50 to 88+40 (R)'!V54, "") -> 
U112: =IF('I - CC 87+50 to 88+40 (R)'!A54<>"", 'I - CC 87+50 to 88+40 (R)'!W54, "") -> 
U113: =IF('I - CC 87+50 to 88+40 (R)'!A55<>"", 'I - CC 87+50 to 88+40 (R)'!V55, "") -> 
U114: =IF('I - CC 87+50 to 88+40 (R)'!A55<>"", 'I - CC 87+50 to 88+40 (R)'!W55, "") -> 

Sheet Rainfall Intensity
A1: Intensity Zone | B1: Frequency | C1: Constant "a" | D1: Constant "b" | E1: Constant "c"
A2: A | B2: 2 | C2: 46.184 | D2: 9 | E2: 0.859
B3: 5 | C3: 56.985 | D3: 10.25 | E3: 0.851
B4: 10 | C4: 64.167 | D4: 11 | E4: 0.842
B5: 25 | C5: 66.528 | D5: 11 | E5: 0.811
B6: 50 | C6: 65.702 | D6: 10.75 | E6: 0.782
B7: 100 | C7: 64.489 | D7: 10.5 | E7: 0.754
A8: B | B8: 2 | C8: 47.987 | D8: 9 | E8: 0.859
B9: 5 | C9: 60.684 | D9: 10.5 | E9: 0.858
B10: 10 | C10: 73.126 | D10: 12 | E10: 0.863
B11: 25 | C11: 75.841 | D11: 12 | E11: 0.833
B12: 50 | C12: 65.621 | D12: 10 | E12: 0.781
B13: 100 | C13: 85.047 | D13: 13.25 | E13: 0.806
A14: C | B14: 2 | C14: 56.299 | D14: 10 | E14: 0.876
B15: 5 | C15: 67.933 | D15: 11 | E15: 0.869
B16: 10 | C16: 84.55 | D16: 13 | E16: 0.882
B17: 25 | C17: 95.736 | D17: 14 | E17: 0.871
B18: 50 | C18: 96.783 | D18: 14 | E18: 0.85
B19: 100 | C19: 80.436 | D19: 11.5 | E19: 0.794
A20: D | B20: 2 | C20: 57.448 | D20: 10 | E20: 0.876
B21: 5 | C21: 67.933 | D21: 11 | E21: 0.869
B22: 10 | C22: 79.192 | D22: 12 | E22: 0.864
B23: 25 | C23: 87.886 | D23: 12.75 | E23: 0.849
B24: 50 | C24: 95.169 | D24: 13.5 | E24: 0.839
B25: 100 | C25: 91.982 | D25: 13 | E25: 0.81
